bitfinex/quotes_BTCUSD_20240906
["timestamp","ask_amount","ask_price","bid_price","bid_amount"]
[1725625303087,0.33610514,55992.0,55986.0,0.40209768]
[1725625303317,0.023,55991.0,55986.0,0.40209768]
[1725625303731,0.178604,55990.0,55987.0,0.178611]
[1725625303946,0.178607,55989.0,55986.0,0.04486768]
[1725625304159,0.023,55991.0,55988.0,0.22346311]
[1725625304381,0.36978879,55994.0,55993.0,0.178593]
[1725625304382,0.000816,55994.0,55993.0,0.178593]
[1725625304609,0.000816,55994.0,55993.0,0.53578]
[1725625304817,0.000816,55994.0,55993.0,0.380993]
[1725625305030,0.000816,55994.0,55993.0,0.78300367]
[1725625305240,0.000816,55994.0,55993.0,0.42581667]
[1725625305456,0.000816,55994.0,55993.0,0.78300367]
[1725625305669,0.000816,55994.0,55993.0,0.78500367]
[1725625306523,0.000816,55994.0,55993.0,0.78900367]
[1725625308522,0.000816,55994.0,55993.0,1.14619067]
[1725625309584,0.000816,55994.0,55993.0,0.78900367]
[1725625312569,0.000816,55994.0,55993.0,1.14619067]
[1725625315613,0.000816,55994.0,55993.0,0.78900367]
[1725625316026,0.22373548,56000.0,55993.0,0.25322367]
[1725625316027,0.26863989,55999.0,55993.0,0.25322367]
[1725625316658,0.178578,55998.0,55993.0,0.25322367]
[1725625317089,0.178578,55998.0,55993.0,0.42981567]
[1725625317988,0.178581,55997.0,55993.0,0.24722367]
[1725625318265,0.178581,55997.0,55993.0,0.42581667]
[1725625320101,0.180581,55997.0,55993.0,0.42581667]
[1725625320342,0.178586,55996.0,55993.0,0.24722367]
[1725625320871,0.178586,55996.0,55993.0,0.42581667]
[1725625321584,0.178586,55996.0,55993.0,0.42681667]
[1725625321800,0.178586,55996.0,55993.0,0.24822367]
[1725625322014,0.178584,55996.0,55993.0,0.24822367]
[1725625322651,0.178584,55996.0,55993.0,0.42681467]
[1725625322859,0.178584,55996.0,55993.0,0.24822367]
[1725625324332,0.178587,55995.0,55993.0,0.24822367]
[1725625325160,0.178587,55995.0,55993.0,0.24722367]
[1725625325373,0.178584,55996.0,55993.0,0.24722367]
[1725625325589,0.178584,55996.0,55993.0,0.24922367]
[1725625326265,0.178587,55995.0,55993.0,0.24722367]
[1725625326686,0.178587,55995.0,55993.0,0.04482367]
[1725625326687,1.03968748,55994.0,55993.0,0.04482367]
[1725625327108,0.892967,55993.0,55992.0,0.001632]
[1725625327316,1.273154,55993.0,55992.0,0.001632]
[1725625328655,1.273154,55993.0,55992.0,0.009632]
[1725625330170,0.915967,55993.0,55992.0,0.009632]
[1725625331091,0.10023327,55995.0,55994.0,0.103]
[1725625331092,0.178587,55995.0,55994.0,0.103]
[1725625331316,0.535761,55995.0,55994.0,0.103]
[1725625331552,0.535761,55995.0,55994.0,0.14781738]
[1725625332192,0.65949648,55995.0,55994.0,0.04481738]
[1725625332412,0.65949648,55995.0,55994.0,0.04681738]
[1725625332413,1.12317048,55995.0,55994.0,0.04681738]
[1725625332620,1.22637048,55995.0,55994.0,0.002]
[1725625332835,1.58354448,55995.0,55994.0,0.002]
[1725625333898,1.58354448,55995.0,55994.0,0.003]
[1725625334317,1.22637048,55995.0,55994.0,0.003]
[1725625334739,1.58354448,55995.0,55994.0,0.003]
[1725625335675,1.62314998,55995.0,55994.0,0.003]
[1725625335885,1.77650256,55995.0,55994.0,0.003]
[1725625336128,1.88486569,55995.0,55994.0,0.003]
[1725625337416,1.78166569,55995.0,55994.0,0.003]
[1725625337630,1.72831311,55995.0,55994.0,0.003]
[1725625338650,1.28763911,55995.0,55994.0,0.003]
[1725625338864,1.34099169,55995.0,55994.0,0.003]
[1725625339287,1.69816569,55995.0,55994.0,0.003]
[1725625339732,1.69818517,55995.0,55994.0,0.003]
[1725625339951,1.34101117,55995.0,55994.0,0.003]
[1725625340388,1.69818517,55995.0,55994.0,0.003]
[1725625341035,1.10891256,55995.0,55994.0,0.003]
[1725625341260,0.301587,55995.0,55994.0,0.1964]
[1725625341483,0.658761,55995.0,55994.0,0.24121738]
[1725625341711,0.658761,55995.0,55994.0,0.1964]
[1725625342123,1.015935,55995.0,55994.0,0.1964]
[1725625342343,1.015935,55995.0,55994.0,0.24121738]
[1725625342552,1.03267237,55995.0,55994.0,0.1964]
[1725625342758,1.03267237,55995.0,55994.0,0.04781738]
[1725625342982,1.03267237,55995.0,55994.0,0.003]
[1725625343437,1.26477098,55995.0,55994.0,0.003]
[1725625344193,1.31814304,55995.0,55994.0,0.003]
[1725625344413,1.67531704,55995.0,55994.0,0.003]
[1725625344624,1.67535124,55995.0,55994.0,0.003]
[1725625345302,1.62194498,55995.0,55994.0,0.003]
[1725625345909,1.26477098,55995.0,55994.0,0.003]
[1725625346143,1.03267237,55995.0,55994.0,0.201]
[1725625347096,1.08607753,55995.0,55994.0,0.201]
[1725625348503,1.08607753,55995.0,55994.0,0.202632]
[1725625348741,1.08607753,55995.0,55994.0,0.004632]
[1725625349029,1.08689353,55995.0,55994.0,0.004632]
[1725625349509,1.03348837,55995.0,55994.0,0.004632]
[1725625349742,1.08690367,55995.0,55994.0,0.004632]
[1725625350244,1.0701663,55995.0,55994.0,0.004632]
[1725625350505,1.08689765,55995.0,55994.0,0.004632]
[1725625353876,1.01048235,55995.0,55994.0,0.086832]
[1725625354383,0.65330835,55995.0,55994.0,0.086832]
[1725625354624,0.65330835,55995.0,55994.0,0.13164938]
[1725625355369,0.47472135,55995.0,55994.0,0.13164938]
[1725625355592,0.65330835,55995.0,55994.0,0.13164938]
[1725625356293,0.29613435,55995.0,55994.0,0.13164938]
[1725625356550,0.19613435,55995.0,55994.0,0.24034938]
[1725625357321,0.01754735,55995.0,55994.0,0.24034938]
[1725625357574,0.01754735,55995.0,55994.0,0.59753038]
[1725625357816,0.01754735,55995.0,55994.0,1.17039703]
[1725625358054,0.01754735,55995.0,55994.0,1.52957803]
[1725625358308,0.01754735,55995.0,55994.0,1.73508899]
[1725625358309,0.000816,55995.0,55994.0,1.73508899]
[1725625358570,0.000816,55995.0,55994.0,1.73308899]
[1725625358816,0.000816,55997.0,55996.0,0.190584]
[1725625359078,0.000816,56001.0,56000.0,0.567713]
[1725625359374,0.000816,56001.0,56000.0,1.93065289]
[1725625359608,0.000816,56001.0,56000.0,2.33257455]
[1725625359888,0.000816,56001.0,56000.0,2.32257455]
[1725625360138,0.000816,56001.0,56000.0,2.33257455]
[1725625361306,0.001816,56001.0,56000.0,2.34657455]
[1725625361746,0.001816,56001.0,56000.0,1.55982298]
[1725625361999,0.001816,56001.0,56000.0,1.57382298]
[1725625364662,0.001816,56001.0,56000.0,1.57582298]
[1725625365512,0.001816,56001.0,56000.0,1.56462806]
[1725625365759,0.001816,56001.0,56000.0,1.79672667]
[1725625366167,0.001816,56001.0,56000.0,1.98223763]
[1725625366804,0.001816,56001.0,56000.0,1.99223763]
[1725625367657,0.001816,56001.0,56000.0,2.34937963]
[1725625372772,0.000815,56018.0,56010.0,1.638855]
[1725625372990,0.000815,56018.0,56010.0,2.27852985]
[1725625373196,0.000815,56018.0,56010.0,2.31206746]
[1725625374085,0.000815,56018.0,56010.0,2.32106746]
[1725625374547,0.001816,56011.0,56010.0,2.33106746]
[1725625374776,0.02049825,56011.0,56010.0,2.33106746]
[1725625376589,0.000815,56018.0,56014.0,1.259685]
[1725625376855,0.000815,56018.0,56014.0,1.9016215]
[1725625377125,0.000815,56018.0,56014.0,1.93514026]
[1725625377772,0.000815,56018.0,56014.0,1.94114026]
[1725625379259,0.000815,56018.0,56014.0,1.94514026]
[1725625379481,0.000815,56018.0,56014.0,1.94714026]
[1725625379726,0.000815,56018.0,56014.0,1.94514026]
[1725625380568,0.000815,56018.0,56014.0,1.93514026]
[1725625380783,0.001815,56015.0,56014.0,1.96314026]
[1725625381209,0.000815,56015.0,56014.0,1.93514026]
[1725625381626,0.001815,56015.0,56014.0,1.94914026]
[1725625381985,0.000815,56015.0,56014.0,1.93514026]
[1725625382437,0.000815,56015.0,56014.0,1.94914026]
[1725625382438,0.001815,56015.0,56014.0,1.94914026]
[1725625383194,0.001815,56015.0,56014.0,1.96314026]
[1725625383393,0.001815,56015.0,56014.0,1.95114026]
[1725625383845,0.001815,56015.0,56014.0,1.96514026]
[1725625385347,0.001815,56015.0,56014.0,2.32219326]
[1725625385988,0.001815,56015.0,56014.0,2.34219326]
[1725625386205,0.001815,56015.0,56014.0,2.33019326]
[1725625386413,0.001815,56015.0,56014.0,2.34019326]
[1725625387054,0.02978605,56015.0,56014.0,2.34019326]
[1725625387267,0.02978605,56015.0,56014.0,2.34219326]
[1725625387504,0.000816,56023.0,56022.0,0.892505]
[1725625387724,0.000816,56023.0,56022.0,0.984005]
[1725625387926,0.000816,56023.0,56022.0,1.01748606]
[1725625388456,0.000816,56023.0,56022.0,1.75046745]
[1725625388677,0.000816,56023.0,56022.0,1.95597841]
[1725625388897,0.000816,56023.0,56022.0,1.7258798]
[1725625389102,0.000816,56023.0,56022.0,2.31498041]
[1725625389527,0.000816,56034.0,56033.0,1.259262]
[1725625389753,0.000816,56034.0,56033.0,2.27821488]
[1725625389954,0.000816,56034.0,56033.0,2.41164414]
[1725625390187,0.00082,56058.0,56033.0,2.41164414]
[1725625390188,0.00082,56058.0,56050.0,0.01]
[1725625390405,0.00082,56058.0,56050.0,1.49646957]
[1725625390406,0.04364476,56057.0,56050.0,1.49646957]
[1725625390621,0.00082,56058.0,56050.0,1.92495411]
[1725625390838,0.00082,56058.0,56050.0,1.93495411]
[1725625391273,0.00082,56058.0,56050.0,2.29177811]
[1725625391474,0.00082,56058.0,56050.0,2.41177811]
[1725625391679,0.00082,56058.0,56050.0,2.78460211]
[1725625392093,0.00082,56068.0,56067.0,1.475306]
[1725625392311,0.00082,56068.0,56067.0,2.27734934]
[1725625392510,0.00082,56068.0,56067.0,1.95390259]
[1725625392711,0.00082,56068.0,56067.0,1.95590259]
[1725625393538,0.00082,56068.0,56067.0,1.96990259]
[1725625393738,0.00082,56068.0,56067.0,2.06990259]
[1725625394153,0.00082,56068.0,56067.0,2.08390259]
[1725625396660,0.00082,56068.0,56067.0,2.08190259]
[1725625397291,0.00082,56068.0,56067.0,2.08390259]
[1725625397940,0.00082,56068.0,56067.0,2.08190259]
[1725625399627,0.00082,56068.0,56067.0,2.08390259]
[1725625400548,0.00082,56068.0,56067.0,1.72518659]
[1725625400767,0.535883,56068.0,56067.0,0.09898702]
[1725625400996,0.179174,56068.0,56067.0,0.06126925]
[1725625401233,0.179174,56068.0,56067.0,0.028]
[1725625401488,0.00082,56068.0,56067.0,0.028]
[1725625401705,0.179174,56068.0,56067.0,0.028]
[1725625402379,0.535883,56068.0,56067.0,0.028]
[1725625402682,0.535883,56068.0,56067.0,0.014]
[1725625402931,0.17836,56067.0,56061.0,0.1095]
[1725625403161,0.179176,56068.0,56067.0,0.03326925]
[1725625403378,0.179176,56068.0,56062.0,0.17551096]
[1725625403379,0.178362,56066.0,56062.0,0.17551096]
[1725625403857,0.178362,56066.0,56063.0,0.03328806]
[1725625404089,0.178364,56065.0,56063.0,0.03328806]
[1725625404303,0.356718,56067.0,56063.0,0.03328806]
[1725625404304,0.178367,56064.0,56063.0,0.03328806]
[1725625404990,0.356718,56067.0,56063.0,0.03328806]
[1725625405282,0.178367,56064.0,56063.0,0.03328806]
[1725625405985,0.535102,56064.0,56063.0,0.03328806]
[1725625406669,0.535102,56064.0,56063.0,0.05528806]
[1725625407135,0.178367,56064.0,56063.0,0.05528806]
[1725625407597,0.535102,56064.0,56063.0,0.05528806]
[1725625408071,0.178367,56064.0,56063.0,0.05528806]
[1725625408293,0.535102,56064.0,56063.0,0.05528806]
[1725625409000,0.891837,56064.0,56063.0,0.05528806]
[1725625409224,1.248572,56064.0,56063.0,0.05528806]
[1725625409469,0.891837,56064.0,56063.0,0.022]
[1725625410441,0.57011623,56064.0,56063.0,0.022]
[1725625410679,0.92685123,56064.0,56063.0,0.022]
[1725625411159,1.37168623,56064.0,56063.0,0.022]
[1725625411665,1.83092123,56064.0,56063.0,0.022]
[1725625411895,1.93092123,56064.0,56063.0,0.022]
[1725625412151,2.31065623,56064.0,56063.0,0.022]
[1725625412403,2.31065623,56064.0,56063.0,0.011]
[1725625412651,1.605447,56059.0,56058.0,0.001632]
[1725625412890,1.83754561,56059.0,56058.0,0.001632]
[1725625413129,1.605447,56059.0,56058.0,0.001632]
[1725625413345,1.83754561,56059.0,56058.0,0.001632]
[1725625414010,2.04314561,56059.0,56058.0,0.001632]
[1725625415316,1.350681,56059.0,56058.0,0.001632]
[1725625415607,0.002,56059.0,56058.0,0.001632]
[1725625416061,0.002,56059.0,56058.0,0.03494359]
[1725625416062,0.537149,56059.0,56058.0,0.03494359]
[1725625416287,0.891915,56059.0,56058.0,0.03494359]
[1725625416543,0.535149,56059.0,56058.0,0.001632]
[1725625416784,0.535149,56059.0,56058.0,0.004632]
[1725625416785,0.891915,56059.0,56058.0,0.004632]
[1725625417020,0.891915,56059.0,56058.0,0.001632]
[1725625417263,0.891915,56059.0,56058.0,0.016632]
[1725625417484,0.535149,56059.0,56058.0,0.016632]
[1725625417958,0.891915,56059.0,56058.0,0.016632]
[1725625418808,0.56310499,56059.0,56058.0,0.016632]
[1725625419418,0.91987099,56059.0,56058.0,0.016632]
[1725625421198,0.891915,56059.0,56058.0,0.016632]
[1725625421632,0.01867767,56062.0,56061.0,0.178377]
[1725625421890,0.01867767,56062.0,56061.0,0.85993358]
[1725625422125,0.00082,56068.0,56061.0,0.80165405]
[1725625422398,0.00082,56068.0,56062.0,0.17551096]
[1725625422603,0.00082,56068.0,56067.0,0.545074]
[1725625422798,0.00082,56068.0,56067.0,1.21859933]
[1725625423017,0.00082,56068.0,56067.0,1.25186858]
[1725625423280,0.00082,56068.0,56067.0,1.60858458]
[1725625423532,0.00082,56068.0,56067.0,1.71778458]
[1725625424003,0.00082,56068.0,56067.0,1.72178458]
[1725625424489,0.00082,56068.0,56067.0,1.71778458]
[1725625425676,0.00082,56068.0,56067.0,1.71978458]
[1725625425898,0.00082,56068.0,56067.0,1.72378458]
[1725625426102,0.00082,56068.0,56067.0,1.73778458]
[1725625426314,0.00082,56068.0,56067.0,1.71778458]
[1725625426522,0.38453483,56087.0,56076.0,0.356656]
[1725625426523,0.356609,56084.0,56076.0,0.356656]
[1725625426733,0.178311,56082.0,56077.0,0.35383596]
[1725625426936,0.356617,56083.0,56077.0,0.20873319]
[1725625427146,0.178309,56083.0,56077.0,0.38705619]
[1725625427347,0.356601,56085.0,56077.0,0.38705619]
[1725625427348,0.17831,56082.0,56077.0,0.38705619]
[1725625427551,0.356601,56085.0,56079.0,0.178318]
[1725625427754,0.178307,56084.0,56079.0,0.10916586]
[1725625427959,0.178307,56083.0,56080.0,0.03320812]
[1725625428171,0.178303,56085.0,56080.0,0.21152412]
[1725625428373,0.178298,56086.0,56080.0,0.03677404]
[1725625428780,0.178298,56086.0,56081.0,0.178312]
[1725625428987,0.02794283,56087.0,56082.0,0.0035658]
[1725625429179,0.20623683,56087.0,56082.0,0.21150872]
[1725625429408,0.02794283,56087.0,56083.0,0.356611]
[1725625429595,0.35657,56090.0,56083.0,0.356613]
[1725625429840,0.178292,56088.0,56084.0,0.21149032]
[1725625430047,0.178292,56088.0,56084.0,0.21149232]
[1725625430251,0.0867,56094.0,56084.0,0.03318932]
[1725625430459,0.356591,56087.0,56084.0,0.03318932]
[1725625430665,0.178298,56086.0,56083.0,0.005]
[1725625430873,0.178298,56086.0,56085.0,0.03318462]
[1725625431076,0.178298,56086.0,56084.0,0.03318932]
[1725625431284,0.178294,56088.0,56084.0,0.03918932]
[1725625431505,0.178294,56088.0,56083.0,0.184307]
[1725625431731,0.178295,56087.0,56085.0,0.03318462]
[1725625432132,0.356563,56091.0,56086.0,0.03317992]
[1725625432346,0.178276,56093.0,56088.0,0.17829]
[1725625432554,0.178276,56093.0,56089.0,0.21145282]
[1725625432763,0.356522,56098.0,56089.0,0.03316582]
[1725625432974,0.356522,56098.0,56090.0,0.18184912]
[1725625433180,0.178274,56094.0,56091.0,0.03315642]
[1725625433586,0.178274,56094.0,56089.0,0.178285]
[1725625433796,0.20621239,56094.0,56092.0,0.03315172]
[1725625434008,0.02793839,56094.0,56090.0,0.178283]
[1725625434216,0.456525,56097.0,56090.0,0.178283]
[1725625434217,0.178269,56095.0,56093.0,0.03314702]
[1725625434478,0.178274,56094.0,56090.0,0.003]
[1725625434667,0.17909,56094.0,56089.0,0.178285]
[1725625434896,0.000816,56094.0,56091.0,0.178281]
[1725625435113,0.178275,56093.0,56089.0,0.178285]
[1725625435329,0.1903,56101.0,56099.0,3.2350327]
[1725625435543,0.991265,56100.0,56099.0,3.2350327]
[1725625436006,0.634759,56100.0,56099.0,3.2350327]
[1725625436908,0.66269544,56100.0,56099.0,3.2350327]
[1725625437171,0.02793644,56100.0,56099.0,3.2350327]
[1725625437385,0.01866689,56103.0,56099.0,3.2350327]
[1725625437386,0.178244,56103.0,56099.0,3.2350327]
[1725625437594,0.02793566,56103.0,56099.0,3.2360327]
[1725625438001,0.178237,56105.0,56100.0,0.178252]
[1725625438214,0.02793352,56103.0,56101.0,0.00356464]
[1725625438442,0.02793352,56103.0,56101.0,0.1818126]
[1725625438648,0.02793352,56103.0,56101.0,0.00356446]
[1725625438851,0.02793352,56103.0,56100.0,0.356504]
[1725625439086,0.02793352,56103.0,56101.0,0.356498]
[1725625439307,0.02793352,56103.0,56102.0,0.178246]
[1725625439772,0.02793352,56103.0,56102.0,0.71024996]
[1725625439977,0.00082,56108.0,56105.0,0.178236]
[1725625440205,0.00082,56108.0,56106.0,0.178232]
[1725625440429,0.00082,56108.0,56106.0,0.00356427]
[1725625440649,0.00082,56108.0,56102.0,0.17551096]
[1725625440650,0.23291861,56108.0,56102.0,0.009]
[1725625441171,0.00082,56108.0,56107.0,0.17823]
[1725625441879,0.00082,56108.0,56107.0,0.53825506]
[1725625442139,0.00082,56108.0,56107.0,0.11536406]
[1725625442373,0.23291861,56108.0,56097.0,0.1118]
[1725625442584,0.23291861,56108.0,56094.0,0.0854]
[1725625442585,0.23209861,56103.0,56094.0,0.0854]
[1725625442809,0.23209861,56103.0,56098.0,0.178256]
[1725625443024,0.178247,56102.0,56094.0,0.441938]
[1725625443246,0.178247,56102.0,56097.0,0.178262]
[1725625443247,0.178248,56102.0,56097.0,0.178262]
[1725625443470,0.178253,56100.0,56093.0,0.290074]
[1725625443687,0.534759,56100.0,56093.0,0.1118]
[1725625444136,0.534759,56100.0,56099.0,3.2470327]
[1725625444347,0.534759,56100.0,56099.0,3.2350327]
[1725625444793,0.534759,56100.0,56099.0,3.2490327]
[1725625445008,0.891265,56100.0,56099.0,3.2490327]
[1725625445224,0.534759,56100.0,56099.0,3.2490327]
[1725625445436,0.534759,56100.0,56099.0,3.2630327]
[1725625445878,0.178253,56100.0,56099.0,3.2630327]
[1725625446116,0.891265,56100.0,56099.0,3.2630327]
[1725625446356,0.534759,56100.0,56099.0,3.2630327]
[1725625447255,0.534759,56100.0,56099.0,3.2490327]
[1725625447920,0.534759,56100.0,56099.0,3.2350327]
[1725625448134,0.534759,56100.0,56099.0,3.2360327]
[1725625448821,0.91919912,56100.0,56099.0,3.2350327]
[1725625449027,0.91919912,56100.0,56099.0,3.2380327]
[1725625449235,0.92019912,56100.0,56099.0,3.2380327]
[1725625449445,0.92019912,56100.0,56099.0,3.26815153]
[1725625449877,0.92019912,56100.0,56099.0,3.27215153]
[1725625450528,0.91919912,56100.0,56099.0,3.27215153]
[1725625450959,0.91919912,56100.0,56099.0,3.27515153]
[1725625451227,0.91919912,56100.0,56099.0,3.26815153]
[1725625451449,0.56269312,56100.0,56099.0,3.27115153]
[1725625451880,0.56269312,56100.0,56099.0,3.27015153]
[1725625452305,0.56269312,56100.0,56099.0,3.27115153]
[1725625452538,0.91919912,56100.0,56099.0,3.27115153]
[1725625452757,1.27570512,56100.0,56099.0,3.27115153]
[1725625452977,0.91919912,56100.0,56099.0,3.27115153]
[1725625453199,0.91919912,56100.0,56099.0,3.27615153]
[1725625454072,0.91919912,56100.0,56099.0,3.27315153]
[1725625454285,0.91919912,56100.0,56099.0,3.26815153]
[1725625454509,0.91919912,56100.0,56099.0,3.27215153]
[1725625455164,0.91919912,56100.0,56099.0,3.27515153]
[1725625457396,0.91898457,56100.0,56099.0,3.27215153]
[1725625457648,0.91998457,56100.0,56099.0,3.26815153]
[1725625457876,0.91998457,56100.0,56099.0,3.26915153]
[1725625458323,0.02893412,56100.0,56099.0,3.26915153]
[1725625458541,0.02893412,56100.0,56099.0,3.38345153]
[1725625458991,0.02893412,56100.0,56099.0,3.26915153]
[1725625459213,0.02893412,56100.0,56099.0,3.26815153]
[1725625459463,0.02893412,56100.0,56099.0,3.26915153]
[1725625460576,0.20718712,56100.0,56099.0,3.26915153]
[1725625460785,0.20718712,56100.0,56099.0,3.26815153]
[1725625461094,0.20618712,56100.0,56099.0,3.27715153]
[1725625461334,1.71080373,56100.0,56099.0,3.27715153]
[1725625461561,1.71080373,56100.0,56099.0,3.28615153]
[1725625462405,1.71080373,56100.0,56099.0,3.26815153]
[1725625462625,1.71080373,56100.0,56099.0,3.27415153]
[1725625462845,1.71080373,56100.0,56099.0,3.28115153]
[1725625463059,1.71080373,56100.0,56099.0,3.27515153]
[1725625463266,1.71180373,56100.0,56099.0,3.27515153]
[1725625463897,1.71180373,56100.0,56099.0,3.26815153]
[1725625464545,1.81080373,56100.0,56099.0,3.26915153]
[1725625464764,1.81280373,56100.0,56099.0,3.26915153]
[1725625464994,1.81280373,56100.0,56099.0,3.26815153]
[1725625467463,1.8661685,56100.0,56099.0,3.26815153]
[1725625467888,1.57982919,56100.0,56099.0,3.26815153]
[1725625468100,1.75808219,56100.0,56099.0,3.26815153]
[1725625468532,1.81144696,56100.0,56099.0,3.26815153]
[1725625469161,1.75808219,56100.0,56099.0,3.26815153]
[1725625469382,1.81144696,56100.0,56099.0,3.26815153]
[1725625469806,2.26795296,56100.0,56099.0,3.26978153]
[1725625470013,2.23958819,56100.0,56099.0,3.26978153]
[1725625470217,2.23758819,56100.0,56099.0,3.26978153]
[1725625470427,2.34431773,56100.0,56099.0,3.26978153]
[1725625471044,2.34231773,56100.0,56099.0,3.26978153]
[1725625471255,2.01375053,56100.0,56099.0,3.26978153]
[1725625471467,2.01575053,56100.0,56099.0,3.27078153]
[1725625473578,1.90902099,56100.0,56099.0,3.27078153]
[1725625473757,2.01593623,56100.0,56099.0,3.27078153]
[1725625474580,1.90902099,56100.0,56099.0,3.27078153]
[1725625474975,0.280253,56100.0,56099.0,3.27078153]
[1725625475180,0.102,56100.0,56099.0,3.27078153]
[1725625477293,0.1,56100.0,56099.0,3.27678153]
[1725625477501,0.1,56100.0,56099.0,3.28178153]
[1725625477992,0.1,56100.0,56099.0,3.27678153]
[1725625478207,0.1,56100.0,56099.0,3.28278153]
[1725625479536,0.1,56100.0,56099.0,3.81754953]
[1725625479958,0.1,56100.0,56099.0,4.17406153]
[1725625480646,0.1,56100.0,56099.0,4.16106153]
[1725625480859,0.1,56100.0,56099.0,3.81254953]
[1725625481443,0.1,56100.0,56099.0,3.82054953]
[1725625481656,0.1,56100.0,56099.0,3.81254953]
[1725625481906,0.1,56100.0,56099.0,3.82054953]
[1725625482294,0.100815,56100.0,56099.0,3.81254953]
[1725625482827,0.100815,56100.0,56099.0,4.16106153]
[1725625483056,0.100815,56100.0,56099.0,4.17006153]
[1725625483273,0.100815,56100.0,56099.0,4.28766153]
[1725625483484,0.100815,56100.0,56099.0,5.18772503]
[1725625483675,0.100815,56100.0,56099.0,5.19672503]
[1725625484790,0.100815,56100.0,56099.0,4.95462642]
[1725625484997,0.100815,56100.0,56099.0,4.94562642]
[1725625485220,0.100815,56100.0,56099.0,4.95962642]
[1725625486422,0.100815,56100.0,56099.0,4.95062642]
[1725625486873,0.100815,56100.0,56099.0,4.96262642]
[1725625487329,0.100815,56100.0,56099.0,4.95062642]
[1725625487767,0.100815,56100.0,56099.0,4.96462642]
[1725625492386,0.100815,56100.0,56099.0,4.97462642]
[1725625493857,0.100815,56100.0,56099.0,5.33113842]
[1725625494485,0.100815,56100.0,56099.0,5.33313842]
[1725625494905,0.100115,56100.0,56099.0,5.33313842]
[1725625495329,0.100115,56100.0,56099.0,5.33113842]
[1725625495771,0.099415,56100.0,56099.0,5.33113842]
[1725625496432,0.099415,56100.0,56099.0,4.97462642]
[1725625496672,0.098715,56100.0,56099.0,5.09462642]
[1725625496913,0.098715,56100.0,56099.0,5.09662642]
[1725625497133,0.098715,56100.0,56099.0,5.45313842]
[1725625497694,0.00082,56108.0,56107.0,2.05557261]
[1725625497923,0.00082,56108.0,56107.0,2.26860005]
[1725625498139,0.00082,56108.0,56107.0,2.29800561]
[1725625498355,0.178995,56125.0,56107.0,2.29800561]
[1725625498356,0.00082,56125.0,56124.0,1.100282]
[1725625498607,0.00082,56125.0,56124.0,1.31330944]
[1725625498819,0.00082,56125.0,56124.0,1.03401661]
[1725625499255,0.00082,56125.0,56124.0,0.56386361]
[1725625500199,0.00082,56125.0,56124.0,0.57586361]
[1725625500444,0.00082,56125.0,56124.0,0.02933461]
[1725625500445,0.53534,56125.0,56124.0,0.02933461]
[1725625500661,0.178204,56116.0,56108.0,0.562651]
[1725625500901,0.23209861,56117.0,56115.0,0.52650515]
[1725625501130,0.178201,56117.0,56109.0,0.02939721]
[1725625501352,0.178194,56119.0,56116.0,0.02936799]
[1725625501591,0.178194,56119.0,56115.0,0.178204]
[1725625501830,0.178194,56119.0,56117.0,0.02936382]
[1725625502062,0.178194,56119.0,56118.0,0.02935965]
[1725625502279,0.178194,56119.0,56115.0,0.178203]
[1725625502532,0.178187,56121.0,56118.0,0.02935965]
[1725625502749,0.178187,56121.0,56117.0,0.178199]
[1725625502973,0.178192,56120.0,56119.0,0.02935547]
[1725625503215,0.02792643,56122.0,56121.0,0.178186]
[1725625503436,0.02792643,56122.0,56120.0,0.178188]
[1725625503648,0.02792643,56122.0,56121.0,0.02934713]
[1725625503891,0.02792643,56122.0,56120.0,0.178188]
[1725625504102,0.02792643,56122.0,56121.0,0.02934713]
[1725625504342,0.02792643,56122.0,56121.0,0.737258]
[1725625504551,0.02792643,56122.0,56121.0,0.76660513]
[1725625504757,0.00082,56125.0,56121.0,0.76660513]
[1725625504758,0.00082,56125.0,56121.0,0.58841913]
[1725625505233,0.00082,56125.0,56122.0,0.178181]
[1725625505460,0.178994,56125.0,56121.0,0.03734713]
[1725625505669,0.00082,56125.0,56122.0,0.20752496]
[1725625506399,0.00082,56125.0,56124.0,0.178176]
[1725625506836,0.00082,56125.0,56124.0,0.20751061]
[1725625507079,0.00082,56125.0,56124.0,0.02933461]
[1725625507307,0.00082,56125.0,56124.0,0.68296361]
[1725625507543,0.00082,56125.0,56124.0,0.653629]
[1725625507801,0.00082,56125.0,56124.0,0.69096361]
[1725625508747,0.00082,56125.0,56124.0,0.68296361]
[1725625509440,0.00082,56125.0,56124.0,0.69496361]
[1725625509689,0.00082,56125.0,56124.0,1.40766961]
[1725625510669,0.00082,56125.0,56124.0,1.41766961]
[1725625511136,0.00082,56125.0,56124.0,1.68618057]
[1725625511865,0.00082,56125.0,56124.0,1.15431661]
[1725625514249,0.00082,56125.0,56124.0,1.36741609]
[1725625514467,0.00082,56125.0,56124.0,1.72376909]
[1725625515643,0.00082,56125.0,56124.0,1.73376909]
[1725625517035,0.00082,56125.0,56124.0,1.72376909]
[1725625517259,0.00082,56125.0,56124.0,1.73676909]
[1725625517483,0.00082,56125.0,56124.0,1.71176909]
[1725625517715,0.00082,56125.0,56124.0,1.72376909]
[1725625518164,0.00082,56125.0,56124.0,1.73776909]
[1725625518185,0.00082,56125.0,56124.0,2.09412209]
[1725625518425,0.00082,56125.0,56124.0,1.72576909]
[1725625518650,0.00082,56125.0,56124.0,1.73976909]
[1725625519065,0.00082,56125.0,56124.0,2.09612209]
[1725625519758,0.00082,56125.0,56124.0,2.09812209]
[1725625520179,0.00082,56125.0,56124.0,2.08212209]
[1725625520387,0.00082,56125.0,56124.0,2.06812209]
[1725625520595,0.00082,56125.0,56124.0,2.08212209]
[1725625521012,0.00082,56125.0,56124.0,2.10412209]
[1725625521434,0.00082,56125.0,56124.0,2.19012209]
[1725625521640,0.00082,56125.0,56124.0,2.20212209]
[1725625521848,0.00082,56125.0,56124.0,2.21612209]
[1725625522062,0.00082,56125.0,56124.0,2.20212209]
[1725625522273,0.00082,56125.0,56124.0,2.18812209]
[1725625522483,0.00082,56125.0,56124.0,2.20412209]
[1725625522690,0.00082,56125.0,56124.0,2.20212209]
[1725625523124,0.00082,56125.0,56124.0,2.20412209]
[1725625523335,0.00082,56125.0,56124.0,2.20212209]
[1725625523542,0.00082,56125.0,56124.0,2.21612209]